bitfinex-derivatives/quotes_SOLF0:USTF0_20250703
["timestamp","ask_amount","ask_price","bid_price","bid_amount"]
[1751569735199,9.68308544,151.9,151.87,54.68388544]
[1751569735397,7.8905216,151.89,151.87,54.68388544]
[1751569735592,9.68308544,151.9,151.87,54.68388544]
[1751569735793,7.8905216,151.89,151.87,51.5814]
[1751569736099,9.68308544,151.9,151.87,54.68388544]
[1751569736296,7.88354701,151.89,151.87,54.68388544]
[1751569736496,9.68308544,151.9,151.87,54.68388544]
[1751569736794,7.88389026,151.89,151.87,54.68388544]
[1751569736996,3.10248544,151.9,151.87,54.68388544]
[1751569737196,7.8835444,151.89,151.87,54.68388544]
[1751569737497,9.68308544,151.9,151.87,54.68388544]
[1751569737796,7.88274142,151.89,151.87,54.68388544]
[1751569737997,9.68308544,151.9,151.87,54.68388544]
[1751569738197,7.88274142,151.89,151.87,54.68388544]
[1751569738398,9.68308544,151.9,151.87,54.68388544]
[1751569738699,7.88169235,151.89,151.87,54.68388544]
[1751569738889,6.5808,151.89,151.87,51.5814]
[1751569739093,6.5808,151.89,151.87,54.68388544]
[1751569739488,6.5808,151.89,151.87,51.5814]
[1751569740197,6.5808,151.89,151.87,54.68388544]
[1751569740399,6.5808,151.89,151.87,51.5814]
[1751569740599,6.5808,151.89,151.87,54.68388544]
[1751569740804,3.10248544,151.88,151.81,570.8447]
[1751569740998,7.88103293,151.87,151.82,45.02]
[1751569741195,6.14580508,151.93,151.86,3.10248544]
[1751569741410,2.41161789,151.92,151.87,237.6036]
[1751569741608,6.5791,151.93,151.91,3.10248544]
[1751569741810,12.04752803,151.92,151.91,190.26]
[1751569742713,14.45860975,151.92,151.91,190.26]
[1751569743721,6.5808,151.89,151.88,190.24]
[1751569744009,6.5808,151.89,151.87,4.85101166]
[1751569744217,6.5808,151.89,151.88,190.22]
[1751569746019,12.04440779,151.89,151.88,190.22]
[1751569746210,6.5816,151.87,151.86,45.02]
[1751569746615,12.04484052,151.87,151.86,45.02]
[1751569747312,12.04484052,151.87,151.82,8.8641]
[1751569747313,5.46324052,151.87,151.82,47.3005]
[1751569747520,5.46189465,151.86,151.82,45.02]
[1751569747716,4.85101166,151.87,151.82,45.02]
[1751569747923,6.5834,151.83,151.82,235.34]
[1751569748417,6.5841,151.82,151.81,190.32]
[1751569748617,4.85101166,151.87,151.81,190.5]
[1751569748825,6.5841,151.82,151.81,190.5]
[1751569750413,6.5841,151.82,151.81,190.46]
[1751569751017,6.5841,151.82,151.8,45.18]
[1751569751220,6.5841,151.82,151.81,190.46]
[1751569752520,6.5841,151.82,151.8,51.7646]
[1751569752823,6.5841,151.82,151.81,190.44]
[1751569753519,6.5836,151.83,151.81,190.44]
[1751569753715,4.85101166,151.85,151.81,190.44]
[1751569754720,6.5838,151.82,151.81,190.44]
[1751569756620,6.5838,151.82,151.8,45.18]
[1751569756819,6.5838,151.82,151.81,190.42]
[1751569757613,6.5835,151.83,151.81,190.42]
[1751569758719,6.5838,151.82,151.81,190.42]
[1751569758918,4.85101166,151.85,151.8,45.18]
[1751569759120,6.5842,151.81,151.8,45.18]
[1751569759322,6.5842,151.81,151.8,235.52]
[1751569759520,6.5842,151.81,151.8,45.18]
[1751569759820,6.5842,151.81,151.8,235.52]
[1751569762625,6.5839,151.82,151.8,235.52]
[1751569763022,4.85101166,151.83,151.8,235.52]
[1751569764525,6.5842,151.81,151.8,235.52]
[1751569765327,6.5839,151.82,151.8,235.52]
[1751569765524,6.5839,151.82,151.8,242.1045]
[1751569768329,4.85101166,151.85,151.8,235.52]
[1751569769228,6.5833,151.84,151.81,6.584]
[1751569769418,6.5833,151.84,151.82,190.38]
[1751569773431,6.5833,151.84,151.82,190.38]
[1751569775127,4.85101166,151.85,151.82,190.38]
[1751569775431,4.85101166,151.83,151.82,190.38]
[1751569776033,4.85101166,151.83,151.8,235.44]
[1751569776227,4.85101166,151.83,151.8,45.18]
[1751569776426,4.85101166,151.83,151.8,235.48]
[1751569776628,6.5838,151.82,151.8,235.48]
[1751569776927,4.85101166,151.83,151.8,235.48]
[1751569777329,6.5842,151.81,151.8,45.18]
[1751569778040,2.2661,151.86,151.8,45.18]
[1751569778230,4.85101166,151.83,151.8,45.18]
[1751569778625,6.5842,151.81,151.8,45.18]
[1751569779533,6.5842,151.81,151.8,235.54]
[1751569780731,4.85101166,151.83,151.75,4.85101166]
[1751569780938,4.85101166,151.79,151.75,190.36]
[1751569781137,6.14580508,151.83,151.75,190.36]
[1751569781438,6.5847,151.8,151.75,190.36]
[1751569781625,6.5847,151.8,151.77,6.5859]
[1751569781926,6.5847,151.8,151.78,190.46]
[1751569782130,6.5851,151.79,151.78,190.46]
[1751569782734,6.5856,151.78,151.76,190.44]
[1751569782938,4.85101166,151.8,151.73,4.85101166]
[1751569783133,5.41815008,151.79,151.74,6.587]
[1751569783334,4.85101166,151.78,151.72,7.01971166]
[1751569783539,4.85101166,151.78,151.72,2.1687]
[1751569783739,4.85101166,151.78,151.73,190.48]
[1751569784038,6.5866,151.76,151.73,197.0675]
[1751569784631,6.5869,151.75,151.73,190.48]
[1751569784836,4.85101166,151.78,151.72,2.1687]
[1751569785037,4.85101166,151.78,151.73,190.52]
[1751569785537,4.85101166,151.78,151.74,6.587]
[1751569785738,4.85101166,151.78,151.73,190.52]
[1751569786135,6.5866,151.76,151.73,197.1075]
[1751569786737,6.5868,151.75,151.73,190.52]
[1751569787037,6.5868,151.75,151.72,199.3166]
[1751569787237,4.85101166,151.78,151.73,6.5877]
[1751569787238,6.5866,151.76,151.73,6.5877]
[1751569787938,6.5861,151.77,151.74,6.5872]
[1751569788536,4.85101166,151.78,151.73,190.62]
[1751569789044,6.5857,151.78,151.75,6.5867]
[1751569789631,4.85101166,151.78,151.72,2.1687]
[1751569789832,2.2534,151.81,151.72,2.1687]
[1751569789833,4.85101166,151.76,151.72,192.7887]
[1751569790228,6.5869,151.75,151.72,192.7887]
[1751569790436,4.85101166,151.76,151.72,2.1687]
[1751569790638,4.85101166,151.76,151.71,242.3682]
[1751569791339,4.85101166,151.76,151.71,51.7682]
[1751569791537,6.5875,151.74,151.71,242.4482]
[1751569792139,6.5876,151.74,151.71,242.4482]
[1751569794042,6.5877,151.73,151.71,45.18]
[1751569794339,4.85101166,151.76,151.71,45.18]
[1751569794541,6.5871,151.75,151.71,45.18]
[1751569794735,4.85101166,151.76,151.71,45.18]
[1751569795138,4.85101166,151.74,151.68,2.2515]
[1751569795335,4.85101166,151.72,151.63,240.79101166]
[1751569795643,5.38416554,151.71,151.63,240.79101166]
[1751569795940,6.5897,151.69,151.66,6.5905]
[1751569798636,6.5897,151.69,151.67,6.5903]
[1751569798833,6.5899,151.68,151.64,190.74]
[1751569799036,6.5899,151.68,151.65,6.5911]
[1751569799238,4.85101166,151.7,151.65,6.5911]
[1751569799834,4.85101166,151.7,151.64,6.5914]
[1751569800238,4.85101166,151.68,151.63,45.2]
[1751569800838,6.5905,151.67,151.63,45.2]
[1751569801141,6.5905,151.67,151.64,6.5913]
[1751569802847,6.5907,151.66,151.64,6.5913]
[1751569803446,6.5904,151.67,151.64,6.5913]
[1751569803647,6.5904,151.67,151.65,6.5911]
[1751569804441,6.5908,151.66,151.64,6.5914]
[1751569804648,4.85101166,151.69,151.64,6.5914]
[1751569804946,4.85101166,151.67,151.63,51.7918]
[1751569805138,4.85101166,151.67,151.63,45.2]
[1751569805743,4.85101166,151.67,151.62,6.5925]
[1751569806548,6.5915,151.65,151.62,6.5925]
[1751569806744,4.85101166,151.67,151.62,6.5925]
[1751569806948,6.5915,151.65,151.62,6.5925]
[1751569808149,6.5916,151.64,151.62,6.5925]
[1751569808648,4.85101166,151.67,151.63,6.592]
[1751569808846,6.5914,151.65,151.63,6.592]
[1751569809046,6.5914,151.65,151.59,245.24481166]
[1751569809750,6.5914,151.65,151.62,6.5922]
[1751569810852,4.85101166,151.67,151.62,6.5923]
[1751569812350,4.6964,151.69,151.63,4.85101166]
[1751569812546,2.2357,151.72,151.67,4.85101166]
[1751569812750,6.5887,151.71,151.67,4.85101166]
[1751569813353,2.2346,151.73,151.69,6.5892]
[1751569814053,6.5888,151.71,151.68,6.5897]
[1751569815657,6.5888,151.71,151.69,6.5894]
[1751569817258,6.5881,151.73,151.67,4.85101166]
[1751569817459,135.25256085,151.74,151.69,4.85101166]
[1751569817961,141.83996085,151.74,151.69,4.85101166]
[1751569818759,141.83996085,151.74,151.71,6.5883]
[1751569820254,141.83996085,151.74,151.72,6.5881]
[1751569820559,141.83996085,151.74,151.69,4.85101166]
[1751569821558,141.83996085,151.74,151.71,6.5883]
[1751569822161,141.83996085,151.74,151.72,6.5881]
[1751569824261,141.83996085,151.74,151.71,6.5883]
[1751569827059,6.5877,151.73,151.71,6.5883]
[1751569827266,6.5877,151.73,151.7,6.5888]
[1751569828763,135.25256085,151.74,151.7,6.5888]
[1751569828965,6.5882,151.72,151.7,6.5888]
[1751569829262,135.25256085,151.74,151.69,6.5892]
[1751569829566,4.85101166,151.73,151.65,4.85101166]
[1751569829766,7.09621166,151.73,151.65,4.85101166]
[1751569830163,6.5894,151.69,151.67,6.5901]
[1751569838564,6.5892,151.7,151.68,6.5897]
[1751569841676,6.5892,151.7,151.67,6.5901]
[1751569844884,2.2452,151.73,151.68,4.85101166]
[1751569845085,2.2122,151.74,151.7,4.85101166]
[1751569845387,47.4282,151.78,151.72,4.85101166]
[1751569845587,47.4282,151.78,151.69,45.22]
[1751569845588,2.2082,151.78,151.74,4.85101166]
[1751569845787,2.2082,151.78,151.73,6.5874]
[1751569846088,6.5866,151.76,151.72,4.85101166]
[1751569846388,6.5866,151.76,151.73,6.5874]
[1751569847285,6.5869,151.75,151.72,6.5879]
[1751569847584,4.85101166,151.76,151.71,45.22]
[1751569847884,6.588,151.73,151.71,45.22]
[1751569848890,6.5881,151.72,151.71,45.22]
[1751569849090,6.5881,151.72,151.67,50.07101166]
[1751569849385,4.85101166,151.74,151.67,45.22]
[1751569849590,4.85101166,151.7,151.63,50.07101166]
[1751569850088,6.5901,151.68,151.65,6.5909]
[1751569850793,6.5904,151.67,151.65,6.5909]
[1751569851791,6.5901,151.68,151.65,6.5909]
[1751569857795,6.5905,151.67,151.63,50.07101166]
[1751569859103,6.5908,151.66,151.63,50.07101166]
[1751569860189,6.5913,151.65,151.63,51.8118]
[1751569860395,6.5913,151.65,151.63,45.22]
[1751569861600,6.5913,151.65,151.63,51.812]
[1751569861999,6.5913,151.65,151.63,45.22]
[1751569866811,2.3027,151.69,151.63,45.22]
[1751569866999,5.4271359,151.68,151.63,45.22]
[1751569867298,7.15371166,151.69,151.64,6.5912]
[1751569867603,5.42665261,151.68,151.64,6.5912]
[1751569867798,2.3027,151.69,151.64,6.5912]
[1751569867999,5.42672979,151.68,151.64,6.5912]
[1751569868200,2.3027,151.69,151.64,6.5912]
[1751569868399,5.42644448,151.68,151.64,6.5912]
[1751569868600,2.3027,151.69,151.64,6.5912]
[1751569868800,5.42644448,151.68,151.64,6.5912]
[1751569869000,6.591,151.66,151.64,6.5912]
[1751569869602,6.591,151.66,151.63,51.8119]
[1751569869808,6.591,151.66,151.63,45.22]
[1751569870409,2.3027,151.69,151.64,4.85101166]
[1751569870608,184.81077628,151.72,151.66,4.85101166]
[1751569870811,6.589,151.7,151.67,6.5901]
[1751569871007,6.589,151.7,151.66,4.85101166]
[1751569871507,6.589,151.7,151.67,6.5899]
[1751569875717,6.5887,151.71,151.66,4.85101166]
[1751569876808,186.87627628,151.72,151.66,4.85101166]
[1751569877010,186.87627628,151.72,151.69,6.5891]
[1751569877209,141.65627628,151.72,151.69,6.5891]
[1751569877508,6.5886,151.71,151.69,6.5891]
[1751569879011,141.65637628,151.72,151.69,6.5891]
[1751569880113,135.06797628,151.72,151.68,4.85101166]
[1751569881809,135.06797628,151.72,151.7,6.5887]
[1751569884113,135.06797628,151.72,151.71,6.5886]
[1751569884313,2.17,151.74,151.7,4.85101166]
[1751569884507,2.3327,151.76,151.7,4.85101166]
[1751569884707,5.45795058,151.75,151.7,4.85101166]
[1751569884909,12.04545058,151.74,151.71,6.5882]
[1751569885107,6.5875,151.74,151.71,6.5882]
[1751569885613,6.5875,151.74,151.72,6.5881]
[1751569887417,8.4568399,151.78,151.72,4.85101166]
[1751569887614,5.46595263,151.77,151.72,4.85101166]
[1751569887912,5.46595263,151.76,151.72,4.85101166]
[1751569888115,6.5862,151.77,151.74,6.587]
[1751569888419,5.46536772,151.76,151.74,6.587]
[1751569888618,6.5862,151.77,151.74,6.587]
[1751569888810,5.46435335,151.76,151.72,4.85101166]
[1751569889012,6.5862,151.77,151.72,4.85101166]
[1751569889617,6.5862,151.77,151.74,6.587]
[1751569890211,6.5862,151.77,151.74,4.85101166]
[1751569890412,8.8977,151.78,151.74,4.85101166]
[1751569890613,2.312,151.78,151.74,4.85101166]
[1751569890809,2.312,151.78,151.74,11.43801166]
[1751569891118,6.5862,151.77,151.74,11.43801166]
[1751569895718,6.5857,151.78,151.75,6.5867]
[1751569895912,137.29000805,151.79,151.74,4.85101166]
[1751569896113,137.29000805,151.79,151.76,6.5861]
[1751569896818,137.29000805,151.79,151.73,50.13101166]
[1751569897320,6.5857,151.78,151.75,6.5866]
[1751569898522,6.586,151.77,151.75,6.5866]
[1751569901825,6.586,151.77,151.74,6.5869]
[1751569902023,137.29000805,151.79,151.74,6.5869]
[1751569902220,137.29000805,151.79,151.73,50.13101166]
[1751569903123,137.29000805,151.79,151.75,4.85101166]
[1751569904331,137.29000805,151.79,151.73,50.13101166]
[1751569905024,142.14101971,151.79,151.73,50.13101166]
[1751569905523,6.5862,151.77,151.75,6.5868]
[1751569906625,142.14101971,151.79,151.74,6.5872]
[1751569907428,6.5862,151.77,151.75,6.5868]
[1751569910241,142.14101971,151.79,151.73,45.28]
[1751569910432,5.47664421,151.78,151.73,45.28]
[1751569910635,5.47664421,151.77,151.73,45.28]
[1751569910831,142.14101971,151.79,151.73,45.28]
[1751569911033,5.47685913,151.78,151.73,45.28]
[1751569911231,5.47685913,151.77,151.73,45.28]
[1751569911434,6.5868,151.76,151.73,45.28]
[1751569911636,142.14101971,151.79,151.73,45.28]
[1751569911940,6.5873,151.74,151.73,45.28]
[1751569921753,6.587,151.75,151.73,45.28]
[1751569923446,6.5873,151.74,151.73,45.28]
[1751569925435,12.08117151,151.74,151.73,45.28]
[1751569927155,2.2581,151.77,151.73,45.28]
[1751569927156,6.587,151.75,151.73,45.28]
[1751569927852,6.5873,151.74,151.73,45.28]
[1751569928447,6.587,151.75,151.73,45.28]
[1751569929656,6.5873,151.74,151.73,45.28]
[1751569929952,12.08927051,151.74,151.73,45.28]
[1751569931556,5.50356951,151.74,151.73,48.39163875]
[1751569932054,12.09086951,151.74,151.73,48.39163875]
[1751569933366,5.50356951,151.74,151.73,54.97933875]
[1751569937462,5.50479277,151.74,151.73,54.97933875]
[1751569939963,5.50479277,151.74,151.73,9.69933875]
[1751569942064,5.50479277,151.74,151.73,6.5877]
[1751569942252,5.50479277,151.74,151.73,9.69933875]
[1751569944766,6.16456207,151.78,151.73,3.11163875]
[1751569944965,6.16456207,151.79,151.77,3.11163875]
[1751569945165,12.74996207,151.79,151.78,3.11163875]
[1751569945365,15.06631214,151.79,151.78,3.11163875]
[1751569949071,8.90175007,151.79,151.78,3.11163875]
[1751569949572,2.31635007,151.79,151.78,9.69713875]
[1751569949866,6.16456207,151.81,151.78,3.11163875]
[1751569950065,6.16456207,151.81,151.8,3.11163875]
[1751569950266,8.48113597,151.81,151.8,3.11163875]
[1751569950666,15.06563597,151.81,151.8,3.11163875]
[1751569951068,8.48113597,151.81,151.8,3.11163875]
[1751569952266,2.3165739,151.81,151.8,3.11163875]
[1751569955573,2.3165739,151.81,151.8,9.69633875]
[1751569956773,6.5837,151.83,151.81,6.5842]
[1751569956966,7.80726497,151.82,151.81,9.69583875]
[1751569957369,5.48158467,151.82,151.81,9.69583875]
[1751569957565,6.16456207,151.86,151.81,48.23163875]
[1751569957768,2.3246445,151.85,151.81,45.12]
[1751569958073,6.16456207,151.86,151.84,9.69433875]
[1751569958376,2.32355923,151.85,151.84,9.69433875]
[1751569959069,6.16456207,151.87,151.84,9.69433875]
[1751569959375,2.32234477,151.86,151.84,9.69433875]
[1751569959577,6.5821,151.86,151.84,9.69433875]
[1751569960476,9.27620082,151.88,151.81,45.12]
[1751569960477,3.11163875,151.85,151.81,45.12]
[1751569960774,3.11163875,151.84,151.8,3.11163875]
[1751569960976,2.32162664,151.85,151.79,3.11163875]
[1751569961276,3.11163875,151.83,151.79,3.11163875]
[1751569961976,6.5841,151.82,151.79,9.69643875]
[1751569962980,6.1416926,151.89,151.81,3.11163875]
[1751569963181,3.11163875,151.85,151.81,3.11163875]
[1751569963374,2.31968335,151.88,151.78,45.1]
[1751569963375,3.11163875,151.86,151.82,9.69543875]
[1751569963876,4.8561333,151.87,151.81,6.584]
[1751569964279,6.5832,151.84,151.81,6.584]
[1751569964480,4.8561333,151.87,151.81,6.584]
[1751569964780,6.5832,151.84,151.81,6.584]
[1751569965375,6.5835,151.83,151.8,11.4406333]
[1751569966479,6.13579443,151.88,151.82,4.8561333]
[1751569966676,53.30973901,151.9,151.82,4.8561333]
[1751569966677,2.31898538,151.87,151.82,4.8561333]
[1751569966877,2.31898538,151.86,151.82,4.8561333]
[1751569967177,4.27197408,151.88,151.82,4.8561333]
[1751569967379,2.3185406,151.87,151.82,4.8561333]
[1751569967579,2.31841274,151.86,151.84,6.5825]
[1751569968283,8.90061274,151.86,151.83,6.5832]
[1751569968585,6.5822,151.86,151.82,4.8561333]
[1751569968786,6.5822,151.86,151.83,6.583]
[1751569969573,5.46421423,151.85,151.84,6.5829]
[1751569970477,49.9761333,151.9,151.84,6.5829]
[1751569970684,6.5821,151.86,151.83,6.5832]
[1751569971685,6.5818,151.87,151.84,6.5829]
[1751569972481,49.9761333,151.9,151.84,6.5829]
[1751569972782,5.45111518,151.89,151.84,6.5829]
[1751569972981,5.45111518,151.88,151.84,6.5829]
[1751569973182,6.5819,151.87,151.84,6.5829]
[1751569973588,6.5819,151.87,151.85,6.5824]
[1751569975288,6.5819,151.87,151.84,6.5827]
[1751569975489,6.5821,151.86,151.82,4.8561333]
[1751569975884,6.5821,151.86,151.84,6.5829]
[1751569976384,6.5818,151.87,151.84,6.5829]
[1751569978989,2.32400251,151.89,151.78,45.1]
[1751569979190,10.3086042,151.88,151.82,4.8561333]
[1751569979393,4.8561333,151.88,151.82,4.8561333]
[1751569979787,7.18013581,151.88,151.82,4.8561333]
[1751569979988,4.8561333,151.88,151.82,4.8561333]
[1751569980185,7.18013581,151.88,151.82,4.8561333]
[1751569980387,4.8561333,151.86,151.78,45.1]
[1751569980686,7.77712111,151.85,151.79,4.8561333]
[1751569980888,12.63508274,151.84,151.78,45.1]
[1751569981090,7.77894944,151.83,151.78,45.1]
[1751569981289,6.5842,151.82,151.79,6.5849]
[1751569981690,4.8561333,151.86,151.79,4.8561333]
[1751569981887,6.13579443,151.87,151.79,4.8561333]
[1751569981888,7.77992322,151.85,151.79,4.8561333]
[1751569982091,7.77992322,151.84,151.79,4.8561333]
[1751569982294,2.32449652,151.86,151.8,6.5844]
[1751569982594,7.77547986,151.85,151.8,6.5844]
[1751569982792,7.77547986,151.84,151.78,49.9561333]
[1751569982983,6.584,151.82,151.79,6.5848]
[1751569983896,8.90843707,151.83,151.78,49.9561333]
[1751569984096,6.13579443,151.87,151.8,4.8561333]
[1751569984394,7.75990814,151.86,151.82,4.8561333]
[1751569984594,5.45271223,151.85,151.82,4.8561333]
[1751569984797,2.30725946,151.87,151.82,4.8561333]
[1751569984992,6.5832,151.84,151.8,4.8561333]
[1751569985193,2.30725946,151.85,151.78,49.9561333]
[1751569985391,6.5845,151.81,151.78,56.5414333]
[1751569985597,6.5845,151.81,151.78,49.9561333]
[1751569986592,6.5845,151.81,151.79,6.585]
[1751569989999,4.8561333,151.82,151.78,45.1]
[1751569990296,7.76259093,151.81,151.78,45.1]
[1751569990501,6.5853,151.79,151.77,6.5858]
[1751570002106,6.5856,151.78,151.76,11.4423333]
[1751570002305,10.99192773,151.83,151.76,11.4423333]
[1751570002511,7.74129724,151.82,151.76,11.4423333]
[1751570002709,6.5853,151.79,151.76,11.4423333]
[1751570002904,6.5853,151.79,151.74,45.1]
[1751570002905,4.8561333,151.79,151.74,45.1]
[1751570003104,6.5871,151.75,151.72,190.38]
[1751570003306,6.5871,151.75,151.72,6.588]
[1751570003606,6.5871,151.75,151.72,197.008]
[1751570006199,4.8561333,151.77,151.71,51.8284]
[1751570006404,4.8561333,151.77,151.71,45.24]
[1751570006405,7.73323358,151.76,151.71,45.24]
[1751570006703,4.8561333,151.77,151.71,45.24]
[1751570006704,5.43120789,151.75,151.71,45.24]
[1751570006912,4.8561333,151.77,151.71,45.24]
[1751570006913,6.588,151.73,151.71,45.24]
[1751570008906,6.588,151.73,151.71,51.8285]
[1751570009411,6.588,151.73,151.71,242.2085]
[1751570012014,6.588,151.73,151.71,51.8285]
[1751570012212,6.588,151.73,151.71,242.1685]
[1751570012715,6.588,151.73,151.71,51.8285]
[1751570012917,6.588,151.73,151.71,242.1885]
[1751570015910,4.8561333,151.76,151.72,6.5881]
[1751570015911,6.5876,151.74,151.72,6.5881]
[1751570016111,4.8561333,151.76,151.71,235.6]
[1751570016709,4.8561333,151.76,151.72,6.5878]
[1751570017214,4.8561333,151.76,151.72,196.8878]
[1751570017615,6.5873,151.74,151.72,196.8878]
[1751570017911,6.5873,151.74,151.72,190.3]
[1751570023221,6.5877,151.73,151.72,190.3]
[1751570023817,6.5877,151.73,151.72,193.41201806]
[1751570024317,6.5877,151.73,151.72,190.3]
[1751570024525,3.11201806,151.73,151.7,3.11201806]
[1751570024724,3.11201806,151.73,151.7,190.26]
[1751570025022,3.11201806,151.73,151.7,190.28]
[1751570025215,6.5884,151.72,151.7,190.28]
[1751570025419,6.5884,151.72,151.7,193.39201806]
[1751570025824,6.5884,151.72,151.7,190.28]
[1751570026323,6.5884,151.72,151.7,196.8688]
[1751570026625,4.86360108,151.75,151.7,196.8688]
[1751570027220,6.5881,151.73,151.7,196.8688]
[1751570029829,6.5882,151.72,151.7,196.8688]
[1751570031227,6.5886,151.71,151.69,6.5892]
[1751570031427,6.5886,151.71,151.7,190.28]
[1751570037727,4.86360108,151.73,151.67,45.14]
[1751570038029,7.69085887,151.72,151.68,190.28]
[1751570038228,4.86360108,151.73,151.68,190.28]
[1751570038533,7.69166061,151.72,151.68,190.28]
[1751570038730,4.86360108,151.73,151.68,190.28]
[1751570039031,7.69166061,151.72,151.68,190.28]
[1751570039232,6.5894,151.7,151.68,190.28]
[1751570040231,6.5894,151.69,151.68,190.28]
[1751570040432,7.16152843,151.71,151.68,190.3]
[1751570040633,4.86360108,151.71,151.68,190.3]
[1751570040834,11.98535272,151.7,151.68,190.3]
[1751570041029,6.589,151.7,151.68,190.3]
[1751570043634,6.589,151.7,151.67,51.7303]
[1751570043839,6.589,151.7,151.68,190.3]
[1751570048742,6.12743381,151.73,151.68,200.0032517]
[1751570048941,7.71084826,151.72,151.68,193.4135517]
[1751570049142,7.71084826,151.71,151.68,193.4135517]
[1751570049339,7.71084826,151.7,151.68,193.4135517]
[1751570049542,6.5892,151.7,151.68,193.4135517]
[1751570051045,6.5892,151.7,151.68,200.0033517]
[1751570051840,6.5892,151.7,151.68,193.4135517]
[1751570052346,6.5892,151.7,151.68,190.3]
[1751570054247,6.5892,151.7,151.68,193.4135517]
[1751570055147,6.5892,151.7,151.68,190.3]
[1751570055350,6.5892,151.7,151.68,193.4135517]
[1751570055754,5.40322143,151.69,151.68,193.4135517]
[1751570059352,6.5892,151.7,151.68,193.4135517]
[1751570059851,6.5892,151.7,151.68,3.1135517]
[1751570060044,6.5892,151.7,151.69,190.28]
[1751570060250,14.30026465,151.7,151.69,190.28]
[1751570067452,7.71106465,151.7,151.69,190.28]
[1751570068054,14.30006465,151.7,151.69,190.28]
[1751570074658,18.81785557,151.7,151.69,190.28]
[1751570074863,6.5897,151.69,151.67,45.14]
[1751570075065,6.5897,151.69,151.68,190.26]
[1751570075260,14.30057748,151.69,151.68,190.26]
[1751570075663,14.30057748,151.69,151.67,51.7303]
[1751570075868,7.71087748,151.68,151.67,235.4]
[1751570077063,7.71087748,151.68,151.67,238.5135517]
[1751570077459,7.71087748,151.68,151.64,2.3955]
[1751570077661,7.70868061,151.67,151.64,48.2535517]
[1751570077966,5.39366521,151.66,151.65,190.26]
[1751570078263,5.39366521,151.66,151.65,196.8511]
[1751570078463,5.39366521,151.66,151.65,6.5911]
[1751570078665,5.39366521,151.66,151.65,196.8511]
[1751570079167,5.39366521,151.66,151.65,9.7046517]
[1751570079361,5.39366521,151.66,151.65,199.9646517]
[1751570079965,5.39366521,151.66,151.65,196.8511]
[1751570080961,5.39366521,151.66,151.65,190.26]
[1751570081367,6.5903,151.67,151.65,190.26]
[1751570081666,6.5903,151.67,151.65,6.5912]
[1751570081866,6.5903,151.67,151.65,196.8712]
[1751570082066,6.5903,151.67,151.65,190.28]
[1751570083569,6.5903,151.67,151.65,196.8711]
[1751570086368,6.5912,151.65,151.64,45.14]
[1751570086566,6.5912,151.65,151.59,2.2496]
[1751570086567,8.49375349,151.65,151.59,3.1135517]
[1751570086767,3.1135517,151.63,151.6,190.26]
[1751570087363,6.5927,151.62,151.6,190.26]
[1751570089273,3.1135517,151.61,151.59,190.26]
[1751570089774,9.7066517,151.61,151.59,190.26]
[1751570090071,6.5931,151.61,151.59,196.8537]
[1751570090277,6.5931,151.61,151.59,199.9672517]
[1751570093674,6.5931,151.61,151.59,9.7072517]
[1751570093882,6.5931,151.61,151.59,200.0072517]
[1751570096479,6.5931,151.61,151.59,196.8937]
[1751570096682,6.5931,151.61,151.6,190.3]
[1751570102682,6.5931,151.61,151.58,45.12]
[1751570102683,3.1135517,151.62,151.58,48.2335517]
[1751570102882,3.1135517,151.62,151.58,238.5535517]
[1751570103479,6.5933,151.61,151.58,245.1475517]
[1751570103775,6.5933,151.61,151.59,3.1135517]
[1751570104178,6.5933,151.61,151.58,51.714]
[1751570104384,6.5933,151.61,151.59,193.4135517]
[1751570104884,2.2478,151.68,151.6,3.1135517]
[1751570105085,3.1135517,151.7,151.66,3.1135517]
[1751570105290,6.5903,151.67,151.66,193.4135517]